bitfinex-derivatives/quotes_ETHF0:USTF0_20250323
["timestamp","ask_amount","ask_price","bid_price","bid_amount"]
[1742756679996,0.00250381,1997.7,1997.6,6.25050797]
[1742756680291,0.00250381,1997.7,1997.6,6.90000797]
[1742756681784,0.00250381,1997.7,1997.6,6.89987816]
[1742756683599,0.00250381,1997.7,1997.6,6.21758]
[1742756683793,0.00250381,1997.7,1997.6,6.89985981]
[1742756684297,0.00250381,1997.7,1997.6,12.85785981]
[1742756685603,1.00383381,1997.7,1997.6,7.3467]
[1742756685897,1.00383381,1997.7,1997.6,9.136]
[1742756686397,3.02723381,1997.7,1997.6,9.136]
[1742756688306,3.02723381,1997.7,1997.6,11.47478]
[1742756688695,3.02723381,1997.7,1997.6,10.4734]
[1742756690198,3.02723381,1997.7,1997.6,4.5154]
[1742756693895,3.02723381,1997.7,1997.6,5.51678]
[1742756695200,3.02723381,1997.7,1997.6,4.5154]
[1742756707605,3.02723381,1997.7,1997.6,5.51678]
[1742756707606,0.00250381,1997.7,1997.6,5.51678]
[1742756707900,1.3224,1997.9,1997.8,1.00128]
[1742756708103,1.3224,1997.9,1997.8,3.178]
[1742756708294,2.32363,1997.9,1997.8,3.178]
[1742756709394,1.3224,1997.9,1997.6,1.00134]
[1742756709593,1.3224,1997.9,1997.5,6.6198]
[1742756709594,3.73938,1997.8,1997.7,3.178]
[1742756711398,1.00138,1997.6,1997.5,7.2949]
[1742756711707,1.00138,1997.6,1997.5,10.49287646]
[1742756711902,1.3731,1997.7,1997.5,10.49287646]
[1742756712108,1.00138,1997.6,1997.5,9.8111]
[1742756712304,2.37446,1997.7,1997.5,11.49428786]
[1742756712508,2.37446,1997.7,1997.5,10.81253]
[1742756712707,1.2934,1997.6,1997.5,10.81253]
[1742756712911,1.2934,1997.6,1997.5,11.49435351]
[1742756713608,1.2934,1997.6,1997.5,5.53639821]
[1742756713804,0.00751145,1998.0,1997.5,7.03851821]
[1742756714110,1.30091145,1998.0,1997.9,1.00123]
[1742756714308,1.30091145,1998.0,1997.9,3.178]
[1742756714709,1.30091145,1998.0,1997.9,4.82143]
[1742756715502,2.30209145,1998.0,1997.9,3.8202]
[1742756717011,1.30091145,1998.0,1997.9,4.82143]
[1742756717513,2.30209145,1998.0,1997.9,3.8202]
[1742756719618,2.30209145,1998.0,1997.9,5.2235]
[1742756720111,2.30209145,1998.0,1997.9,6.22473]
[1742756720417,2.30209145,1998.0,1997.9,5.2235]
[1742756722225,2.30209145,1998.0,1997.9,6.22473]
[1742756725724,2.30209145,1998.0,1997.9,1.4033]
[1742756725913,1.00123,1997.9,1997.8,3.177]
[1742756726113,2.38853,1997.9,1997.8,3.177]
[1742756726317,1.00133,1997.7,1997.6,13.6188]
[1742756726820,1.00133,1997.7,1997.6,10.411]
[1742756727011,2.38863,1997.7,1997.6,10.411]
[1742756727717,2.38863,1997.7,1997.6,11.41238]
[1742756729122,2.38863,1997.7,1997.6,10.411]
[1742756731214,2.38863,1997.7,1997.6,4.453]
[1742756731414,2.38863,1997.7,1997.6,5.45438]
[1742756731615,1.3873,1997.7,1997.6,5.45438]
[1742756733319,2.38863,1997.7,1997.6,5.45438]
[1742756734628,1.3873,1997.7,1997.6,5.45438]
[1742756734811,1.00125,1997.9,1997.7,1.00133]
[1742756735017,2.37745,1997.9,1997.7,2.28853]
[1742756735217,2.37745,1997.9,1997.8,4.83538]
[1742756735418,2.37745,1997.9,1997.8,6.12258]
[1742756735922,2.37745,1997.9,1997.8,5.1213]
[1742756743628,1.3762,1997.9,1997.8,6.12258]
[1742756745229,2.37743,1997.9,1997.8,6.12258]
[1742756745430,2.37743,1997.9,1997.8,5.1213]
[1742756750733,2.37743,1997.9,1997.8,6.12258]
[1742756750923,2.37743,1997.9,1997.8,5.1213]
[1742756751430,2.37743,1997.9,1997.8,6.12258]
[1742756751731,2.37743,1997.9,1997.8,5.1213]
[1742756752524,2.37743,1997.9,1997.8,6.12258]
[1742756752725,1.3762,1997.9,1997.8,6.12258]
[1742756752924,1.71419145,1998.0,1997.9,1.00123]
[1742756753126,3.09649145,1998.0,1997.9,2.32753]
[1742756757435,3.09649145,1998.0,1997.9,1.3263]
[1742756757733,3.09649145,1998.0,1997.9,2.32753]
[1742756761743,3.09649145,1998.0,1997.9,1.3263]
[1742756763143,3.09649145,1998.0,1997.9,2.32753]
[1742756763955,3.09649145,1998.0,1997.9,1.3263]
[1742756764246,1.00123,1997.9,1997.8,3.8341]
[1742756764549,2.29083,1997.9,1997.8,5.2293]
[1742756767947,2.29083,1997.9,1997.8,2.0523]
[1742756768254,2.29083,1997.9,1997.6,1.00134]
[1742756768255,1.00132,1997.8,1997.6,1.00134]
[1742756768553,2.28152,1997.8,1997.7,4.17833]
[1742756768948,2.28152,1997.8,1997.7,5.54083]
[1742756771655,2.28152,1997.8,1997.7,4.5395]
[1742756772558,2.28152,1997.8,1997.7,5.54083]
[1742756773353,1.2802,1997.8,1997.5,3.177]
[1742756773560,1.00142,1997.6,1997.5,3.177]
[1742756773755,1.00143,1997.5,1997.4,0.00751145]
[1742756773952,4.20923,1997.5,1997.4,0.00751145]
[1742756775155,5.58363,1997.5,1997.4,0.00751145]
[1742756776156,4.5822,1997.5,1997.4,0.00751145]
[1742756776359,1.3744,1997.5,1997.4,1.00899145]
[1742756776861,1.3744,1997.5,1997.4,5.51019145]
[1742756777165,1.00141,1997.6,1997.4,5.51015145]
[1742756777356,1.00141,1997.6,1997.5,2.0214]
[1742756777861,1.00141,1997.6,1997.5,3.02283]
[1742756778268,0.6681,1997.7,1997.5,2.0214]
[1742756778467,3.02673,1997.7,1997.6,1.3242]
[1742756786057,3.02673,1997.7,1997.4,0.00751145]
[1742756786058,4.52873,1997.7,1997.4,0.00751145]
[1742756786273,1.00143,1997.5,1997.4,0.00751145]
[1742756786667,3.00663,1997.5,1997.4,0.00751145]
[1742756794376,3.00663,1997.5,1997.1,1.3228]
[1742756794377,1.00158,1997.2,1997.1,3.833]
[1742756794778,1.00158,1997.2,1997.1,0.656]
[1742756795074,1.00168,1997.0,1996.9,3.8457]
[1742756795375,1.00168,1997.0,1996.9,0.6687]
[1742756795579,1.00173,1996.9,1996.8,3.18451145]
[1742756795879,2.35763,1996.9,1996.8,3.18451145]
[1742756796466,2.35763,1996.9,1996.8,3.87901145]
[1742756797181,3.04543,1996.9,1996.8,3.87901145]
[1742756797377,6.25323,1996.9,1996.8,3.87901145]
[1742756801485,6.25323,1996.9,1996.8,0.70201145]
[1742756802173,6.25323,1996.9,1996.8,1.98281145]
[1742756803884,6.25323,1996.9,1996.8,0.00751145]
[1742756804189,6.91483,1996.9,1996.8,0.00751145]
[1742756812085,1.00188,1996.6,1996.5,0.6465]
[1742756812277,1.00188,1996.6,1996.4,1.3961]
[1742756812278,1.00193,1996.5,1996.4,1.3961]
[1742756812587,3.02443,1996.5,1996.4,1.3961]
[1742756813791,1.00208,1996.2,1996.1,0.6647]
[1742756815096,2.29138,1996.2,1996.1,1.9774]
[1742756826294,1.2893,1996.2,1996.1,2.97953]
[1742756826497,3.2078,1996.3,1996.1,1.9774]
[1742756826699,3.2078,1996.3,1996.2,1.3658]
[1742756826889,3.2078,1996.3,1996.2,2.0226]
[1742756826890,4.20983,1996.3,1996.2,2.0226]
[1742756827992,1.00203,1996.3,1996.2,2.0226]
[1742756831293,1.00203,1996.3,1996.2,3.02468]
[1742756831993,1.00203,1996.3,1996.2,2.0226]
[1742756832585,1.00203,1996.3,1996.2,3.02468]
[1742756832997,1.00203,1996.3,1996.2,3.02466]
[1742756833801,1.00203,1996.3,1996.2,2.0226]
[1742756835100,1.00203,1996.3,1996.2,6.20368]
[1742756835304,1.3306,1996.4,1996.3,1.00203]
[1742756835494,2.33258,1996.4,1996.3,1.3648]
[1742756836597,3.2078,1996.7,1996.3,1.3648]
[1742756836893,1.3656,1996.8,1996.4,3.8548]
[1742756837093,1.00185,1996.7,1996.5,2.36671]
[1742756837295,1.00185,1996.7,1996.6,4.5438]
[1742756837695,1.3656,1996.8,1996.6,4.5438]
[1742756837897,3.9016,1996.9,1996.7,2.36663]
[1742756838096,6.29955,1996.9,1996.8,2.0211]
[1742756839991,5.2978,1996.9,1996.8,2.0211]
[1742756840487,6.29953,1996.9,1996.8,2.0211]
[1742756841189,5.2978,1996.9,1996.8,2.0211]
[1742756841391,6.29953,1996.9,1996.8,2.0211]
[1742756843201,6.29953,1996.9,1996.8,5.1991]
[1742756844507,5.2978,1996.9,1996.8,5.1991]
[1742756846502,2.09,1996.9,1996.8,5.1991]
[1742756847302,2.09,1996.9,1996.8,6.20088]
[1742756847503,2.09,1996.9,1996.8,5.1991]
[1742756848106,1.3962,1996.9,1996.8,6.20088]
[1742756850211,1.3962,1996.9,1996.8,5.1991]
[1742756851707,2.39793,1996.9,1996.8,5.1991]
[1742756852608,2.39793,1996.9,1996.8,6.20088]
[1742756854505,1.3962,1996.9,1996.8,6.20088]
[1742756855308,2.39793,1996.9,1996.8,6.20088]
[1742756857812,1.3962,1996.9,1996.8,6.20088]
[1742756860204,1.00922145,1997.0,1996.8,6.20088]
[1742756860409,2.34672145,1997.0,1996.9,1.343]
[1742756864216,2.34672145,1997.0,1996.9,2.34473]
[1742756864814,2.34672145,1997.0,1996.9,1.343]
[1742756866305,1.34501145,1997.0,1996.9,2.34473]
[1742756867416,0.00751145,1997.0,1996.9,2.34473]
[1742756869116,1.37921145,1997.0,1996.9,2.34473]
[1742756882618,1.37921145,1997.0,1996.9,3.02794679]
[1742756882823,1.37921145,1997.0,1996.9,2.34473]
[1742756883229,1.37921145,1997.0,1996.9,3.02795269]
[1742756883418,1.37921145,1997.0,1996.9,2.34473]
[1742756884216,1.37921145,1997.0,1996.9,6.23572366]
[1742756885721,1.37921145,1997.0,1996.9,5.55253]
[1742756886022,0.00751145,1997.0,1996.9,6.23571731]
[1742756886214,2.99595,1997.3,1996.9,6.23571731]
[1742756886417,1.3119,1997.2,1997.0,5.143]
[1742756886620,1.3119,1997.2,1997.1,2.28153]
[1742756886818,1.3119,1997.2,1997.1,2.98853]
[1742756887929,2.31348,1997.2,1997.1,1.9869]
[1742756888124,2.31348,1997.2,1997.1,2.98853]
[1742756890924,1.3119,1997.2,1997.1,2.98853]
[1742756891124,2.31348,1997.2,1997.1,1.9869]
[1742756891324,2.31348,1997.2,1997.1,2.98853]
[1742756892832,1.3119,1997.2,1997.1,2.98853]
[1742756893127,0.69001145,1997.3,1997.1,2.98853]
[1742756893128,0.00751145,1997.3,1997.2,1.00158]
[1742756893333,0.00751145,1997.3,1997.2,5.48648]
[1742756893530,0.00751145,1997.3,1997.2,6.16912484]
[1742756894126,0.00751145,1997.3,1997.2,5.48648]
[1742756897121,2.10951145,1997.3,1997.2,5.48648]
[1742756907832,2.10951145,1997.3,1997.2,8.69428]
[1742756912448,2.10951145,1997.3,1997.2,5.48648]
[1742756912656,2.10951145,1997.3,1997.2,8.69428]
[1742756914744,3.11104145,1997.3,1997.2,8.69428]
[1742756914946,2.10951145,1997.3,1997.2,8.69428]
[1742756920557,2.10951145,1997.3,1997.2,5.48648]
[1742756920754,2.10951145,1997.3,1997.2,8.69428]
[1742756921458,3.11104145,1997.3,1997.2,1.3079]
[1742756921658,1.00158,1997.2,1997.1,5.958]
[1742756921860,1.00163,1997.1,1997.0,3.18351145]
[1742756924059,1.00163,1997.1,1997.0,4.46391145]
[1742756927862,1.00163,1997.1,1997.0,0.00751145]
[1742756928069,4.89673,1997.1,1997.0,0.00751145]
[1742756931461,4.20943,1997.1,1997.0,0.00751145]
[1742756931663,4.20943,1997.1,1997.0,0.65191145]
[1742756932471,4.91673,1997.1,1997.0,0.65191145]
[1742756932673,4.91673,1997.1,1997.0,0.00751145]
[1742756933860,1.70893,1997.1,1997.0,0.00751145]
[1742756934061,4.91673,1997.1,1997.0,1.29751145]
[1742756934468,1.70893,1997.1,1997.0,1.29751145]
[1742756935268,4.91673,1997.1,1997.0,1.29751145]
[1742756935466,3.2078,1997.1,1997.0,2.29919145]
[1742756935669,4.20943,1997.1,1997.0,1.29751145]
[1742756936067,4.20943,1997.1,1997.0,1.99141145]
[1742756936270,4.20943,1997.1,1997.0,2.99309145]
[1742756946479,4.20943,1997.1,1997.0,1.29751145]
[1742756946667,4.90403,1997.1,1997.0,1.29751145]
[1742756947266,4.90403,1997.1,1997.0,0.00751145]
[1742756951780,6.28373,1997.1,1997.0,0.00751145]
[1742756958579,5.58913,1997.1,1997.0,0.00751145]
[1742756958778,5.58913,1997.1,1997.0,1.71759145]
[1742756959281,4.5875,1997.1,1997.0,3.03159145]
[1742756959486,1.3797,1997.1,1997.0,6.20859145]
[1742756959686,2.38133,1997.1,1997.0,6.20859145]
[1742756961091,2.38133,1997.1,1997.0,5.20691145]
[1742756961484,2.38133,1997.1,1997.0,6.20859145]
[1742756962592,2.38133,1997.1,1997.0,5.20691145]
[1742756970597,2.38133,1997.1,1997.0,6.20859145]
[1742756971397,1.3797,1997.1,1997.0,6.20859145]
[1742756971699,2.38133,1997.1,1997.0,6.20859145]
[1742756972599,1.3797,1997.1,1997.0,6.20859145]
[1742756974200,2.38133,1997.1,1997.0,6.20859145]
[1742756974599,1.3797,1997.1,1997.0,6.20859145]
[1742756977500,2.38133,1997.1,1997.0,6.20859145]
[1742756977895,1.3797,1997.1,1997.0,6.20859145]
[1742756981606,2.38133,1997.1,1997.0,6.20859145]
[1742756982102,1.3797,1997.1,1997.0,6.20859145]
[1742756982608,0.00751145,1997.3,1997.2,1.00158]
[1742756982807,1.00904145,1997.3,1997.2,3.176]
[1742756983006,1.00904145,1997.3,1997.2,3.8682]
[1742756983210,1.71684145,1997.3,1997.2,4.86978]
[1742756983610,1.71684145,1997.3,1997.2,3.8682]
[1742756984104,3.00414145,1997.3,1997.2,6.28518]
[1742756984706,3.00414145,1997.3,1997.2,5.2836]
[1742756986208,3.00414145,1997.3,1997.2,6.28518]
[1742756990711,3.00414145,1997.3,1997.2,5.2836]
[1742756991413,3.00414145,1997.3,1997.2,6.28518]
[1742756995817,3.00414145,1997.3,1997.2,5.2836]
[1742756997218,3.00414145,1997.3,1997.2,6.28518]
[1742757002010,1.29481145,1997.3,1997.2,6.28518]
[1742757002215,0.00751145,1997.3,1997.2,9.49298]
[1742757004420,3.2078,1997.7,1997.5,1.00143]
[1742757004619,5.58364,1997.9,1997.6,5.1661]
[1742757004825,1.3746,1997.8,1997.7,2.30918]
[1742757005019,1.3746,1997.8,1997.7,1.00128]
[1742757007117,2.0421,1997.8,1997.7,1.00128]
[1742757008119,3.04338,1997.8,1997.7,1.00128]
[1742757008322,2.0421,1997.8,1997.7,1.00128]
[1742757008624,4.21657145,1997.9,1997.8,1.00128]
[1742757008625,0.00751145,1997.9,1997.8,1.00128]
[1742757008823,0.00751145,1997.9,1997.8,4.17628]
[1742757010922,1.39991145,1997.9,1997.8,4.17628]
[1742757012621,0.00751145,1997.9,1997.8,4.17628]
[1742757013628,0.00751145,1997.9,1997.8,7.38408]
[1742757017219,0.00751145,1997.9,1997.8,8.03048]
[1742757019825,0.00751145,1997.9,1997.8,9.38738]
[1742757021530,0.00751145,1997.9,1997.8,15.34538]
[1742757030836,0.00751145,1997.9,1997.8,14.69898]
[1742757031232,2.02011145,1997.9,1997.8,14.69898]
[1742757049045,2.02011145,1997.9,1997.8,11.52398]
[1742757049250,2.02011145,1997.9,1997.8,14.69698]
[1742757049547,2.02011145,1997.9,1997.8,13.34008]
[1742757050948,2.02011145,1997.9,1997.8,7.38208]
[1742757055352,2.02011145,1997.9,1997.8,8.09018]
[1742757057663,2.02011145,1997.9,1997.8,7.38208]
[1742757058259,1.34301145,1997.9,1997.8,8.06718]
[1742757058556,1.34301145,1997.9,1997.8,8.70818]
[1742757059554,1.34301145,1997.9,1997.8,7.38208]
[1742757060369,1.34301145,1997.9,1997.8,8.75998]
[1742757064071,1.34301145,1997.9,1997.8,5.55218]
[1742757064274,1.34301145,1997.9,1997.8,8.75998]
[1742757082283,0.00751145,1997.9,1997.8,9.42928]
[1742757084376,0.00751145,1997.9,1997.8,8.75998]
[1742757084688,1.38831145,1997.9,1997.8,8.75998]
[1742757086482,0.00751145,1997.9,1997.8,8.75998]
[1742757091777,1.34761145,1997.9,1997.8,8.75998]
[1742757092983,1.34761145,1997.9,1997.8,5.55218]
[1742757093286,1.34761145,1997.9,1997.8,7.7577]
[1742757093488,1.34761145,1997.9,1997.8,8.75898]
[1742757096586,1.34761145,1997.9,1997.8,7.7577]
[1742757098190,1.34761145,1997.9,1997.8,8.75898]
[1742757099994,1.34761145,1997.9,1997.8,7.7577]
[1742757100194,1.34761145,1997.9,1997.8,8.75898]
[1742757101990,1.34761145,1997.9,1997.8,5.55118]
[1742757102291,1.34761145,1997.9,1997.8,8.75898]
[1742757102888,1.34761145,1997.9,1997.8,7.7577]
[1742757103293,1.34761145,1997.9,1997.8,8.75898]
[1742757104693,1.34761145,1997.9,1997.8,7.7577]
[1742757104894,1.34761145,1997.9,1997.8,8.75898]
[1742757105193,2.34884145,1997.9,1997.8,3.2078]
[1742757105494,1.00148,1997.4,1997.3,5.958]
[1742757105684,1.00153,1997.3,1997.2,6.3798]
[1742757105885,2.98983,1997.3,1997.2,6.3798]
[1742757106496,2.98983,1997.3,1997.2,7.6778]
[1742757107695,2.98983,1997.3,1997.2,6.3798]
[1742757107895,2.98983,1997.3,1997.2,3.172]
[1742757108198,1.00158,1997.2,1997.1,1.298]
[1742757108499,2.41188,1997.2,1997.1,4.47]
[1742757111998,2.41188,1997.2,1997.1,3.172]
[1742757114202,2.41188,1997.2,1997.1,4.5413]
[1742757116496,2.41188,1997.2,1997.0,4.21698145]
[1742757116703,2.38973,1997.1,1997.0,0.00751145]
[1742757116904,3.04313,1997.1,1997.0,3.18051145]
[1742757117106,3.04313,1997.1,1997.0,0.00751145]
[1742757129315,1.00178,1996.8,1996.7,3.173]
[1742757129817,1.00178,1996.8,1996.7,1.3506]
[1742757131319,1.64378,1996.8,1996.7,1.3506]
[1742757134124,1.00188,1996.6,1996.5,3.173]
[1742757134314,1.00188,1996.6,1996.5,4.4555]
[1742757134621,2.35438,1996.6,1996.5,1.2825]
[1742757134921,1.00198,1996.4,1996.3,8.03469]
[1742757135119,1.00198,1996.4,1996.3,9.31719]
[1742757135520,1.00198,1996.4,1996.3,8.3152]
[1742757135716,0.66081145,1996.7,1996.3,8.3152]
[1742757136017,1.00193,1996.5,1996.4,2.41754]
[1742757137120,1.00193,1996.5,1996.4,1.4156]
[1742757142322,2.36253,1996.5,1996.4,1.4156]
[1742757165861,1.00208,1996.2,1996.1,4.20989]
[1742757166056,1.00213,1996.1,1996.0,2.35823]
[1742757166361,1.00213,1996.1,1996.0,4.5301]
[1742757167158,1.00213,1996.1,1996.0,2.7415]
[1742757167351,1.00213,1996.1,1996.0,5.254]
[1742757167550,1.65543,1996.1,1996.0,5.254]
[1742757167756,3.04723,1996.1,1996.0,5.254]
[1742757169361,3.04723,1996.1,1996.0,2.08]
[1742757176375,3.2078,1996.2,1996.1,1.00213]
[1742757176376,1.0021,1996.2,1996.1,1.00213]
[1742757176570,1.0021,1996.2,1996.1,2.98353]
[1742757176874,2.3186,1996.2,1996.1,1.9814]
[1742757180279,2.3186,1996.2,1996.1,2.98353]
[1742757180871,2.3186,1996.2,1996.1,1.9814]
[1742757181276,2.3186,1996.2,1996.1,2.98353]
[1742757181482,2.3186,1996.2,1996.1,1.9814]
[1742757183273,2.3186,1996.2,1996.1,2.98353]
[1742757183881,2.3186,1996.2,1996.1,1.9814]
[1742757184081,2.3186,1996.2,1996.1,2.98353]
[1742757184284,2.3186,1996.2,1996.1,1.2926]
[1742757184980,2.3186,1996.2,1996.1,2.29473]
[1742757191284,2.3186,1996.2,1996.1,1.2926]
[1742757191485,3.0073,1996.2,1996.1,1.2926]
[1742757191688,1.00228,1995.9,1995.8,1.00226]
[1742757191890,1.00228,1995.9,1995.8,4.17626]
[1742757192188,1.00228,1995.9,1995.8,1.00226]
[1742757192578,1.00228,1995.9,1995.8,1.70826]
[1742757192986,2.29068,1995.9,1995.8,3.09426]
[1742757193505,2.29068,1995.9,1995.8,2.092]
[1742757193903,2.29068,1995.9,1995.8,1.386]
[1742757194210,1.00233,1995.7,1995.6,1.70837]
[1742757195109,3.08983,1995.7,1995.6,3.08767]
[1742757195299,2.0875,1995.7,1995.6,3.08767]
[1742757195701,1.4146,1995.7,1995.6,3.08767]
[1742757196801,0.6933,1995.9,1995.8,1.00228]
[1742757197203,1.69553,1995.9,1995.8,0.6773]
[1742757197496,1.69553,1995.9,1995.8,1.67958]
[1742757198009,1.69553,1995.9,1995.8,0.6773]
[1742757198215,3.00063,1995.9,1995.8,2.035]
[1742757199216,3.00063,1995.9,1995.8,3.03728]
[1742757203819,1.00228,1995.8,1995.7,3.174]
[1742757204120,1.00233,1995.7,1995.6,1.68155]
[1742757205213,1.341,1995.7,1995.6,2.97735]
[1742757205419,2.34333,1995.7,1995.6,2.97735]
[1742757205721,1.341,1995.7,1995.6,2.97735]
[1742757206422,2.34333,1995.7,1995.6,2.97735]
[1742757206622,1.341,1995.7,1995.6,2.97735]
[1742757207525,2.34333,1995.7,1995.6,2.97735]
[1742757209018,1.341,1995.7,1995.6,2.97735]
[1742757211528,2.34333,1995.7,1995.6,2.97735]
[1742757211729,1.341,1995.7,1995.6,2.97735]
[1742757212232,2.34333,1995.7,1995.6,2.97735]
[1742757212827,1.341,1995.7,1995.6,2.97735]
[1742757213227,2.34333,1995.7,1995.6,2.97735]
[1742757214237,2.34333,1995.7,1995.6,6.15135]
[1742757216936,1.341,1995.7,1995.6,6.15135]
[1742757217434,2.34333,1995.7,1995.6,6.15135]
[1742757217635,1.341,1995.7,1995.6,6.15135]
[1742757218235,2.34333,1995.7,1995.6,6.15135]
[1742757219742,1.341,1995.7,1995.6,6.15135]
[1742757220439,2.34333,1995.7,1995.6,6.15135]
[1742757221738,1.341,1995.7,1995.6,6.15135]
[1742757222439,2.34333,1995.7,1995.6,6.15135]
[1742757222627,1.341,1995.7,1995.6,6.15135]
[1742757223738,2.34333,1995.7,1995.6,6.15135]
[1742757224939,1.341,1995.7,1995.6,6.15135]
[1742757225340,2.34333,1995.7,1995.6,6.15135]
[1742757227245,1.341,1995.7,1995.6,6.15135]
[1742757228241,2.34333,1995.7,1995.6,6.15135]
[1742757228443,1.341,1995.7,1995.6,6.15135]
[1742757228945,2.34333,1995.7,1995.6,6.15135]
[1742757229137,1.341,1995.7,1995.6,6.15135]
[1742757229445,2.34333,1995.7,1995.6,6.15135]
[1742757229647,1.341,1995.7,1995.6,6.15135]
[1742757230546,2.34333,1995.7,1995.6,6.15135]
[1742757230846,1.341,1995.7,1995.6,6.15135]
[1742757231047,2.34333,1995.7,1995.6,6.15135]
[1742757231747,1.341,1995.7,1995.6,6.15135]
[1742757233141,2.34333,1995.7,1995.6,6.15135]
[1742757233348,1.341,1995.7,1995.6,6.15135]
[1742757233850,2.34333,1995.7,1995.6,6.15135]
[1742757234049,1.341,1995.7,1995.6,6.15135]
[1742757234648,2.34333,1995.7,1995.6,6.15135]
[1742757235547,1.341,1995.7,1995.6,6.15135]
[1742757237148,2.34333,1995.7,1995.6,6.15135]
[1742757241948,1.341,1995.7,1995.6,6.15135]
[1742757242261,2.34333,1995.7,1995.6,6.15135]
[1742757242852,1.341,1995.7,1995.6,6.15135]
[1742757244152,2.34333,1995.7,1995.6,6.15135]
[1742757245455,1.00238,1995.6,1995.5,3.173]
[1742757245655,3.05928,1995.6,1995.5,5.50713]
[1742757245859,3.72038,1995.6,1995.5,4.5047]
[1742757246655,2.0569,1995.6,1995.5,5.50713]
[1742757247049,6.83281683,1995.8,1995.7,1.00233]
[1742757247251,8.53102683,1995.8,1995.7,1.00233]
[1742757248653,9.93972683,1995.8,1995.7,1.402]
[1742757248958,9.93972683,1995.8,1995.7,2.40433]
[1742757249260,9.93972683,1995.8,1995.7,1.402]
[1742757250658,9.93972683,1995.8,1995.7,2.40433]
[1742757250846,9.93972683,1995.8,1995.7,1.402]
[1742757253459,9.93972683,1995.8,1995.7,2.40433]
[1742757254157,9.93972683,1995.8,1995.7,1.402]
[1742757254551,9.93972683,1995.8,1995.7,2.40433]
[1742757254859,9.93972683,1995.8,1995.7,1.402]
[1742757255159,9.93972683,1995.8,1995.7,2.40433]
[1742757257161,8.93741683,1995.8,1995.5,3.173]
[1742757257362,1.00243,1995.5,1995.4,4.83144]
[1742757257562,1.00243,1995.5,1995.4,6.21904]
[1742757258364,1.9833,1995.5,1995.4,6.21904]
[1742757260569,2.98573,1995.5,1995.4,6.21904]
[1742757263065,1.9833,1995.5,1995.4,6.21904]
[1742757265574,1.00990145,1995.6,1995.5,1.00243]
[1742757265774,0.00751145,1995.6,1995.5,3.02643]
[1742757266072,1.33911145,1995.6,1995.5,3.02643]
[1742757268576,2.34149145,1995.6,1995.5,2.024]
[1742757268777,1.33911145,1995.6,1995.5,3.02643]
[1742757272777,2.34149145,1995.6,1995.5,3.02643]
[1742757274083,1.33911145,1995.6,1995.5,3.02643]
[1742757275085,2.34149145,1995.6,1995.5,3.02643]
[1742757275285,1.33911145,1995.6,1995.5,3.02643]
[1742757276889,2.34149145,1995.6,1995.5,3.02643]
[1742757277990,1.33911145,1995.6,1995.5,3.02643]
[1742757288090,2.34149145,1995.6,1995.5,3.02643]
[1742757288398,1.33911145,1995.6,1995.5,3.02643]
[1742757292198,1.350395,1995.6,1995.5,3.02643]
[1742757300101,0.01128355,1995.6,1995.5,6.23423]
[1742757300300,6.18931683,1995.8,1995.7,1.00233]
[1742757300604,0.6501,1996.4,1996.3,1.00203]
[1742757300804,1.349,1996.4,1996.3,1.00203]
[1742757301202,1.349,1996.4,1996.3,2.35953]
[1742757301801,2.35098,1996.4,1996.3,2.35953]
[1742757303303,3.68168,1996.4,1996.3,2.35953]
[1742757303507,1.00203,1996.3,1996.2,4.18155145]
[1742757303705,2.41563,1996.3,1996.2,4.18155145]
[1742757308614,2.41563,1996.3,1996.2,1.00955145]
[1742757309008,2.41563,1996.3,1996.2,2.32705145]
[1742757310019,2.41563,1996.3,1996.2,0.00751145]
[1742757310402,1.00213,1996.1,1996.0,1.00215]
[1742757311021,2.37083,1996.1,1996.0,1.00215]
[1742757311210,2.37083,1996.1,1996.0,2.30205]
[1742757312115,2.37083,1996.1,1996.0,2.30208]
[1742757312614,1.3687,1996.1,1996.0,1.2999]
[1742757312815,1.3687,1996.1,1996.0,2.30208]
[1742757313015,2.37083,1996.1,1996.0,2.30208]
[1742757313215,1.00223,1995.9,1995.8,1.00227]
[1742757313413,1.00223,1995.9,1995.8,1.349]
[1742757313916,2.33503,1995.9,1995.7,4.17329]
[1742757314311,1.3328,1995.8,1995.7,4.17329]
[1742757316027,2.33508,1995.8,1995.7,1.00229]
[1742757316224,2.33508,1995.8,1995.6,5.52234]
[1742757316419,2.69,1995.7,1995.6,5.52234]
[1742757329332,3.69233,1995.7,1995.6,5.52234]
[1742757329528,3.69233,1995.7,1995.6,4.52]
[1742757330530,3.69233,1995.7,1995.6,5.52238]
[1742757350648,2.69,1995.7,1995.6,5.52238]
[1742757350838,3.69233,1995.7,1995.6,5.52238]
[1742757357048,3.69233,1995.7,1995.6,1.349]
[1742757357254,2.50599,1995.6,1995.2,4.21036]
[1742757357443,1.0025,1995.4,1995.3,1.00253]
[1742757357845,1.00253,1995.3,1995.2,7.38136]
[1742757358144,1.64691,1995.4,1995.3,1.00253]
[1742757358345,3.03462145,1995.4,1995.3,2.37733]
[1742757359861,3.03459145,1995.4,1995.3,2.37733]
[1742757360468,2.03211145,1995.4,1995.3,2.37733]
[1742757360668,0.65191145,1995.4,1995.3,2.37733]
[1742757360966,0.00751145,1995.4,1995.3,3.03143]
[1742757362769,0.00751145,1995.4,1995.3,5.53143]
[1742757365363,0.00751145,1995.4,1995.3,8.73923]
[1742757368870,0.00751145,1995.4,1995.3,6.23923]
[1742757371177,1.36521145,1995.4,1995.3,5.58513]
[1742757371372,1.36521145,1995.4,1995.3,8.75613]
[1742757371573,1.36521145,1995.4,1995.3,5.54833]
[1742757378981,2.01071145,1995.4,1995.3,5.54833]
[1742757382085,2.01071145,1995.4,1995.3,8.75613]